Cogmind - Beta 14 @@@ ROGUE MODE // 2025.01.03 @ 19:39:18 Player: TheTominator63 Result: Destroyed by YI-UF0 with YI-UF0's Doublenader Performance ------------- Evolutions (0) 0 Regions Visited (4) 800 Robots Destroyed (18) 90 Value Destroyed (352) 352 Prototype IDs (23) 460 Alien Tech Used (0) 0 Bonus (300) 300 TOTAL SCORE: 2002 Bonus ------- Aligned with FarCom 300 Cogmind --------- Core Integrity 0/250 Matter 300/300 Energy 76/100 System Corruption 0% Temperature Cool (0) Movement Walking (90) Location -9/Mines Parts ------- > --- POWER (1) -------- (None) > --- PROPULSION (2) --- Potential Leg Potential Leg > --- UTILITY (2) ------ Medium Storage Unit Improved Terrain Scanner > --- WEAPON (2) ------- Bore Cannon Hammer > --- INVENTORY (10) --- Ion Engine Light Ion Engine Compact Wheel Compact Wheel Small Storage Unit Terrain Scan Processor ECM Suite Chronowheel Light Cannon Field Lobotomy Kit (5) Peak State ------------ > --- POWER ------------ (None) > --- PROPULSION ------- Potential Leg Potential Leg > --- UTILITY ---------- Medium Storage Unit Improved Terrain Scanner > --- WEAPON ----------- Bore Cannon Hammer > --- INVENTORY -------- Ion Engine Light Ion Engine Compact Wheel Compact Wheel Small Storage Unit Terrain Scan Processor ECM Suite Chronowheel Light Cannon Field Lobotomy Kit [Rating: 33] Favorites ----------- Power Ion Engine Engine Ion Engine Propulsion Light Treads Treads Light Treads Leg Potential Leg Wheel Compact Wheel Utility Small Storage Unit Device Structural Scanner Storage Small Storage Unit Weapon Light Cannon Energy Gun Particle Gun Ballistic Gun Assault Rifle Ballistic Cannon Light Cannon Launcher Grenade Launcher Impact Weapon Hammer Build | -11 -10 -10 -10 -9 ------- Run | Yrd Mat Min Exi Min Slots Evolved . | . . . . . Power . | . . . . . Propulsion . | . . . . . Utility . | . . . . . Weapon . | . . . . . Parts Attached 23 | 7 4 7 1 4 Power 1 | 1 . . . . Engine 1 | 1 . . . . Core . | . . . . . Reactor . | . . . . . Propulsion 6 | 2 . 2 . 2 Treads 2 | 2 . . . . Leg 2 | . . . . 2 Wheel 2 | . . 2 . . Hover . | . . . . . Flight . | . . . . . Utility 6 | 2 1 1 1 1 Device 4 | 1 1 1 . 1 Storage 2 | 1 . . 1 . Processor . | . . . . . Hackware . | . . . . . Protection . | . . . . . Artifact . | . . . . . Weapon 10 | 2 3 4 . 1 Energy Gun 2 | . 1 1 . . Energy Cannon . | . . . . . Ballistic Gun 2 | 2 . . . . Ballistic Cannon 4 | . 2 1 . 1 Launcher 1 | . . 1 . . Special Weapon . | . . . . . Impact Weapon 1 | . . 1 . . Slashing Weapon . | . . . . . Piercing Weapon . | . . . . . Special Melee Weapon . | . . . . . Unidentified Prototypes . | . . . . . Parts Lost 6 | . . 6 . . Power 1 | . . 1 . . Propulsion 2 | . . 2 . . Utility 1 | . . 1 . . Weapon 2 | . . 2 . . Highest Loss Streak 6 | . . 6 . . To Critical Strikes . | . . . . . Average Slot Usage (%) 91 | . 99 84 85 85 Engine 7 | . 14 5 . . Treads 14 | . 28 10 . . Leg 1 | . . . . 18 Wheel 12 | . . 14 28 9 Device 13 | . 14 12 14 14 Storage 14 | . 14 14 14 14 Energy Gun 3 | . 6 4 . . Ballistic Gun 3 | . 6 . . . Ballistic Cannon 13 | . 14 8 14 14 Impact Weapon 6 | . . 8 14 14 Peak Build Rating 33 | 9 10 11 11 33 Average Rating 9 | 6 9 7 7 22 On Entrance 7 | . 9 10 6 11 Naked Turns . | . . . . . Heaviest Build 22 | 14 17 17 16 22 Greatest Support 60 | 40 40 40 32 60 Greatest Overweight (x) 2 | . . 2 . . Average Overweight (x) . | . . . . . Largest Inventory Capacity 10 | 8 8 8 10 10 Average Capacity 8 | 7 8 8 9 10 Most Carried 10 | 2 6 8 10 10 Average Carried 5 | 1 4 6 6 9 Final Capacity 10 | 8 8 8 10 10 Final Carried 10 | 2 6 5 10 10 Class Distribution -------------------- 98% | Mutant Dominant Class ---------------- Mutant | -10/Materials Mutant | -10/Mines Mutant | -10/Exiles Mutant | -9/Mines Resources | -11 -10 -10 -10 -9 ----------- Run | Yrd Mat Min Exi Min Matter Collected 572 | 211 223 60 . 78 Remotely . | . . . . . Salvage Created 395 | 42 323 . . 30 Parts 31 | 3 23 . . 5 Haulers Intercepted . | . . . . . Recyclers Shooed . | . . . . . Parts Field Recycled . | . . . . . Retrieved Matter . | . . . . . Parts Self-Destructed . | . . . . . Prevented . | . . . . . Kills | -11 -10 -10 -10 -9 ------- Run | Yrd Mat Min Exi Min Combat Hostiles Destroyed 12 | . 8 . . 4 Guns 3 | . 3 . . . Cannons 9 | . 5 . . 4 Classes Destroyed 5 | 1 4 . . . Builder 2 | . 2 . . . Tunneler 2 | 2 . . . . Watcher 2 | . 2 . . . Swarmer 7 | . 3 . . 4 Grunt 5 | . 5 . . . Best Kill Streak 4 | 2 3 . . 4 Combat Bots Only 4 | . 3 . . 4 Max Kills in Single Turn 1 | 1 1 . . 1 Gunslinging . | . . . . . Exploded . | . . . . . Melee . | . . . . . Uniques/NPCs Destroyed . | . . . . . Combat | -11 -10 -10 -10 -9 -------- Run | Yrd Mat Min Exi Min Hostile Shots Fired 62 | . 36 13 . 13 Missed 18 | . 8 3 . 7 Damage Taken 949 | . 309 464 . 176 Core 255 | . 55 129 . 71 Absorbed by Shields . | . . . . . Core Remaining (%) 100 | 100 . . . . Volleys Fired 49 | 5 36 1 1 6 Largest 2 | 2 2 1 1 1 Hottest 100 | 40 100 30 35 35 Shots Fired 88 | 10 70 1 1 6 Gun 45 | 10 35 . . . Cannon 42 | . 35 . 1 6 Launcher 1 | . . 1 . . Special . | . . . . . Kinetic 68 | 10 51 . 1 6 Thermal 19 | . 19 . . . Explosive 1 | . . 1 . . Electromagnetic . | . . . . . Robot Hit Streak 15 | 8 15 3 . 5 Robot Miss Streak 5 | 2 5 . . 1 Penetration Max . | . . . . . Secondary Targets . | . . . . . Shots Hit Robots 50 | 8 36 2 . 4 Core Hits 26 | 4 15 3 . 4 Critical Kills . | . . . . . Critical Parts Destroyed . | . . . . . Critical Strikes 3 | . 2 . . 1 Blast 3 | . 2 . . 1 Melee Attacks 3 | . . 3 . . Impact 3 | . . 3 . . Slashing . | . . . . . Piercing . | . . . . . Sneak Attacks 1 | . . 1 . . Combat Hostiles . | . . . . . Follow-up Attacks . | . . . . . Damage Inflicted 812 | 90 579 74 . 69 Guns 416 | 90 326 . . . Cannons 298 | . 229 . . 69 Explosions 15 | . . 15 . . Melee 59 | . . 59 . . Ramming 24 | . 24 . . . Kinetic 516 | 90 357 . . 69 Thermal 198 | . 198 . . . Explosive 15 | . . 15 . . Electromagnetic . | . . . . . Impact 59 | . . 59 . . Slashing . | . . . . . Piercing . | . . . . . Highest Corruption . | . . . . . Average Corruption . | . . . . . Corruption Purged . | . . . . . Corruption Blocked . | . . . . . Overload Shots . | . . . . . Overflow Damage 34 | . 10 24 . . Projectiles 10 | . 10 . . . Explosions 5 | . . 5 . . Melee 19 | . . 19 . . Knockbacks 3 | . 3 . . . Impact 1 | . 1 . . . Kinetic 2 | . 2 . . . Secondary . | . . . . . Self-Inflicted Damage 23 | . . 23 . . Shots 1 | . . 1 . . Rammed 5 | . 5 . . . Targets Rammed 5 | . 5 . . . Kicked . | . . . . . Crushed . | . . . . . Highest Temperature 279 | . 279 . . . Average Temperature 77 | . 77 . . . Received Heat Transfer 144 | . 138 6 . . Effects 1 | . 1 . . . Energy Bleed 1 | . 1 . . . Siege Activations . | . . . . . Robots Corrupted . | . . . . . Combat Hostiles . | . . . . . Parts Fried . | . . . . . Impact Corruptions 1 | . . 1 . . Robots Melted . | . . . . . Combat Hostiles . | . . . . . Parts Melted 1 | . 1 . . . Heat Transferred 444 | . 444 . . . Parts Sabotaged . | . . . . . Parts Stolen . | . . . . . Parts Stripped . | . . . . . Power Chain Reactions . | . . . . . Alert | -11 -10 -10 -10 -9 ------- Run | Yrd Mat Min Exi Min Peak Influence 239 | 10 239 70 . 105 Initial 70 | . 6 70 . . Average 72 | 4 84 36 . 78 Maximum Alert Level 1 | . 1 . . . Low Security (%) 98 | 100 97 100 . 100 Level 1 1 | . 2 . . . Level 2 . | . . . . . Level 3 . | . . . . . Level 4 . | . . . . . Level 5 . | . . . . . High Security . | . . . . . Max Security . | . . . . . Squads Dispatched 1 | . 1 . . . Investigation . | . . . . . Extermination . | . . . . . Reinforcement 1 | . 1 . . . Assault . | . . . . . Garrison . | . . . . . Intercept . | . . . . . Searches Triggered . | . . . . . Construction Impeded . | . . . . . Haulers Reinforced . | . . . . . Active Scanning Responses . | . . . . . Cargo Convoy Interrupts . | . . . . . Stealth | -11 -10 -10 -10 -9 --------- Run | Yrd Mat Min Exi Min Distress Signals . | . . . . . Communications Jammed . | . . . . . Distress Signals . | . . . . . Times Spotted 24 | . 14 4 . 6 Peak Tracking Total 5 | . 5 2 . 4 Tactical Retreats 2 | . 1 . . 1 Traps | -11 -10 -10 -10 -9 ------- Run | Yrd Mat Min Exi Min Traps Triggered . | . . . . . Indirectly . | . . . . . Trap Hack Attempts . | . . . . . Triggered . | . . . . . Disarmed . | . . . . . Reprogrammed . | . . . . . Reused . | . . . . . Traps Extracted . | . . . . . Installed . | . . . . . Triggered . | . . . . . Machines | -11 -10 -10 -10 -9 ---------- Run | Yrd Mat Min Exi Min Machines Disabled 3 | . 3 . . . Max in Single Turn 1 | . 1 . . . Machines Repaired . | . . . . . Machines Dismantled . | . . . . . Machines Sabotaged . | . . . . . Overloaded Fab Kills . | . . . . . Hacking | -11 -10 -10 -10 -9 --------- Run | Yrd Mat Min Exi Min Machines Accessed 9 | . 7 . 2 . Terminals 5 | . 5 . . . Fabricators . | . . . . . Repair Stations 1 | . 1 . . . Recycling Units 1 | . 1 . . . Scanalyzers . | . . . . . Garrison Access . | . . . . . Total Hacks 34 | . 31 . 3 . Successful 21 | . 18 . 3 . Failed 13 | . 13 . . . Catastrophic 2 | . 2 . . . Database Lockouts . | . . . . . Manual 3 | . 1 . 2 . Terminals 27 | . 27 . . . Fabricators . | . . . . . Repair Stations 2 | . 2 . . . Recycling Units 2 | . 2 . . . Scanalyzers . | . . . . . Garrison Access . | . . . . . Terminal Hacks 18 | . 15 . 3 . Record 9 | . 7 . 2 . Emergency Access Points 1 | . 1 . . . Alert Level 1 | . 1 . . . Locate Traps 1 | . 1 . . . Maintenance Status 1 | . 1 . . . Transport Status 1 | . 1 . . . Hauler Manifests 1 | . 1 . . . Registered Prototypes 1 | . 1 . . . Zone Layout 1 | . 1 . . . Derelict Proto ID Bank 1 | . . . 1 . Fabricator Hacks . | . . . . . Repair Station Hacks 1 | . 1 . . . Scan Component 1 | . 1 . . . Recycling Unit Hacks 2 | . 2 . . . Process 1 | . 1 . . . Retrieve Matter 1 | . 1 . . . Scanalyzer . | . . . . . Garrison Access Hacks . | . . . . . Unauthorized Hacks . | . . . . . Terminals . | . . . . . Fabricators . | . . . . . Repair Stations . | . . . . . Recycling Units . | . . . . . Scanalyzers . | . . . . . Garrison Access . | . . . . . Data Cores Recovered . | . . . . . Used . | . . . . . Hacking Detections 6 | . 6 . . . Full Trace Events . | . . . . . Feedback Events . | . . . . . Feedback Blocked . | . . . . . Robot Schematics Acquired . | . . . . . Robots Built . | . . . . . Authchips . | . . . . . Time . | . . . . . Total Robot Build Rating . | . . . . . Part Schematics Acquired . | . . . . . Parts Built . | . . . . . Authchips . | . . . . . Time . | . . . . . Total Part Build Rating . | . . . . . Parts Repaired . | . . . . . Time . | . . . . . Parts Recycled . | . . . . . Recycled Matter 52 | . 52 . . . Retrieved Matter 52 | . 52 . . . Retrieved Components . | . . . . . Parts Scanalyzed . | . . . . . Part Schematics Acquired . | . . . . . Parts Damaged . | . . . . . Bothacking | -11 -10 -10 -10 -9 ------------ Run | Yrd Mat Min Exi Min Used RIF Installer . | . . . . . Robots Hacked . | . . . . . Non-combat . | . . . . . Combat . | . . . . . Robot Hacks Applied . | . . . . . Relay Couplers Released . | . . . . . Fabnet Peak Effective % . | . . . . . Robots Rewired . | . . . . . Allies Hacked . | . . . . . Hacks Repelled . | . . . . . Allies | -11 -10 -10 -10 -9 -------- Run | Yrd Mat Min Exi Min Total Allies . | . . . . . Largest Group . | . . . . . Highest-Rated Group . | . . . . . Highest-Rated Ally . | . . . . . Total Orders . | . . . . . Ally Attacks . | . . . . . Total Damage . | . . . . . Kills . | . . . . . Allies Corrupted . | . . . . . Allies Melted . | . . . . . Intel | -11 -10 -10 -10 -9 ------- Run | Yrd Mat Min Exi Min Robot Analysis Total . | . . . . . Derelict Logs Recovered 1 | . . 1 . . Drone Launches . | . . . . . Drone Recoveries . | . . . . . Exploration | -11 -10 -10 -10 -9 ------------- Run | Yrd Mat Min Exi Min Turns Passed 2511 | 122 1127 185 908 169 Spaces Moved 1889 | 65 626 138 899 161 Core 9 | 7 . 2 . . Treads 724 | 58 626 40 . . Legs 114 | . . . . 114 Wheels 1042 | . . 96 899 47 Hover . | . . . . . Flight . | . . . . . Fastest Speed 50 | 50 160 100 100 90 Average Speed 122 | 148 160 118 100 92 Slowest Speed 160 | 160 160 160 100 100 Overloaded Moves . | . . . . . Propulsion Burnouts . | . . . . . Robots Hopped . | . . . . . Cave-ins Triggered . | . . . . . Exploration Rate (%) 45 | 5 65 27 93 35 Regions Visited 4 Branch Regions 3 Pre-discovered Areas 1 | . . 1 . . Known Exits Taken . | . . . . . Unknown Exits Taken 4 | 1 1 1 1 . Scrap Searched 2 | . . . . 2 Spaces Dug . | . . . . . Terrain Destroyed 4 | . . 4 . . Melee . | . . . . . Projectile . | . . . . . AOE 4 | . . 4 . . Terrain Rammed . | . . . . . Walls Destroyed . | . . . . . Machines Disabled . | . . . . . Actions | -11 -10 -10 -10 -9 --------- Run | Yrd Mat Min Exi Min Total 1988 | 78 680 151 906 173 Wait 3 | . 3 . . . Move 1885 | 64 625 137 898 161 Hop . | . . . . . Pick Up 14 | 2 4 2 5 1 Fast Attach 12 | 7 3 2 . . Attach 4 | . . 3 . 1 Detach . | . . . . . Swap 7 | . 1 2 1 3 Drop 4 | . 3 . . 1 Fire 49 | 5 36 1 1 6 Melee 3 | . . 3 . . Ram . | . . . . . Kick . | . . . . . Crush 5 | . 5 . . . Escape Stasis . | . . . . . Rewire 2 | . . 1 1 . Trap . | . . . . . Miscellaneous . | . . . . . Route ------- -11/Scrapyard -10/Materials (discovered 2 exits: [*Mat] / [*Min]) -10/Mines -10/Exiles (discovered 2 exits: [*Min x2]) -9/Mines (discovered 2 exits: [*Mat x2]) History --------- Turn | Location | Event 25 | -11/Scrapyard | Discovered new exit (range 16) 123 | -11/Scrapyard | Entered Materials 179 | -10/Materials | Discovered new exit (range 14) 314 | -10/Materials | Build established: Mutant 407 | -10/Materials | Discovered new exit (range 7) 1250 | -10/Materials | Entered Mines 1251 | -10/Mines | Assembled infested the area 1323 | -10/Mines | Met 8R-AWN 1326 | -10/Mines | Core integrity fell below 50% 1358 | -10/Mines | Lost 6 parts (1p2n1u2w) 1361 | -10/Mines | Learned location of Zion (-7) 1431 | -10/Mines | Discovered new exit (range 5) 1435 | -10/Mines | Entered Exiles 1459 | -10/Exiles | Discovered new exit (range 15) 1474 | -10/Exiles | Welcomed by 8R-AWN 1498 | -10/Exiles | Met EX-HEX 1582 | -10/Exiles | Met EX-DEC 1636 | -10/Exiles | Discovered new exit (range 14) 1715 | -10/Exiles | Visited The Gauntlet 1901 | -10/Exiles | Learned about 8R-AWN's background 1937 | -10/Exiles | Met EX-BIN 1967 | -10/Exiles | Aligned with FarCom system 1968 | -10/Exiles | Given EX-Vault access code 2088 | -10/Exiles | Opened EX-Vault 2094 | -10/Exiles | Found Field Lobotomy Kit 2101 | -10/Exiles | Found Potential Leg 2103 | -10/Exiles | Found Potential Leg 2127 | -10/Exiles | Warned to stay clear of 0b10 Research branches 2244 | -10/Exiles | Found Chronowheel 2343 | -10/Exiles | Stole three prototypes: Potential Leg, Chronowheel, Field Lobotomy Kit 2343 | -10/Exiles | Entered Mines 2344 | -9/Mines | Discovered new exit (range 9) 2441 | -9/Mines | Discovered new exit (range 7) 2473 | -9/Mines | YI-UF0 nonchalantly dropped a Grenade Launcher on the ground 2480 | -9/Mines | A weapon hastily lodged in a ceiling crevice suddenly fell to the ground 2509 | -9/Mines | Core integrity fell below 20% 2512 | -9/Mines | Destroyed by YI-UF0 with YI-UF0's Doublenader Last Messages --------------- K-01 Serf collects debris. A Bore Cannon has been hastily shoved under some rubble with a note attached: "Boring, it is not. Although I admit enemies do get bored, for sure." Acquired Bore Cannon. K-01 Serf collects debris. Searching scrap... Found Sml. Laser. Found 32 Matter. Found 55 Matter. Acquired 55 matter. Acquired 1 matter. U-05 Engineer lays Concrete. T-07 Excavator is excavating. U-05 Engineer lays Concrete. T-07 Excavator is excavating. U-05 Engineer destroyed. YI-UF0 mumbles something. The unstable cave ceiling collapses. Map ----- +----------------------------------------------------+ | ## = """" ###??????????????????????? | | ########## ### """" ###???????#???????????????? | | ########## ### ###????????????????????????? | | ????????## ## ###?????????????????????????? | | ????????## ###??????????????????????????? | | ????????## ### ###???????????????????????????? | | ????????## #### ####???????????????????????????? | | ????????## ##### ####??#####?????#???????????????? | | ????????## ##### ###?### ##????????????????????? | | ????????## ##?## ###?# #????????????????????? | | ????????## ##?## ##??# #???????? ? ?????????? | | ????????## ##?## ##???# ??????????????????????? | | ????????## ##?## ##????# #???????????????????????? | | ?????????? ???## ##????# #???????????????????????? | | ????????? #??## ##????# #???????????????????????? | | ?????????###??## ##????# ##??????????????????????? | | ?????????###??## ##????# #######?????????????????? | | ??????????????## ##???## ######??????????????????? | | ??????????###### ##????# [ #??#????#??????????? | | ??????????###### ##????### %! #??????????????????? | | ?######???## ##???### * #??????????????????? | | ########??## ########?# #??????????????????? | | ### ####### ########## # #????????????????? | | ## ###### #### #### #????????????????? | | ## ### ##???????????????? | | ## ## @ #???????????????? | | ## ########## ## #???????????????? | | ## ########### #???????????????? | | ## ###??????### #???????????????? | | # ######????### ###### #?????????????? | | ######???#### ######## #?????????????? | | ####???### ##??????# * = =????????????? | | ######### ##??????? %g *==[???????????? | | < ######## ##??????? ! % ???????????? | | # ##??????? ###???????????? | | ###### ############???????########?????????????? | | #####################????????????????????????????? | | ????#######??????????????????????????????????????? | | | | | | | | | | | | | | | | | | | | | | | | | +----------------------------------------------------+ Best States ------------- Heat Dissipation 39 Energy Generation 10 Energy Capacity 250 Matter Stores 300 Matter Capacity 300 Sight Range 16 Terrain Scan Range 16 Terrain Scan Density 10 Evasion (%) 57 Recoil Reduction 2 Item Schematics ----------------- None Robot Schematics ------------------ None Fabricated ------------ Nothing Alien Tech Used ----------------- None Achievements -------------- Tourist Challenges ------------ None Game ------ Seed CoolantCombatWarhead Manual? 0 Play Time 00:32:50 Cumulative 3.2 hours Start 2025.01.03 @ 19:07:15 End 2025.01.03 @ 19:39:18 Sessions 1 Manual Loads 0 Difficulty Rogue Special Mode None Game No. 4 Rogue 3 Adventurer 1 Explorer 0 Win Type - Total 0 Types 0/0/0/0/0/0/0/0/0 Lore% 2 Gallery% 6 Achievement% 8 Wizard Run 0 Options --------- Layout 1 ASCII 0 Keyboard 0 Movement Arrows Keybinds 0 Fullscreen 1 Font 24/Smallcaps Map View 50x35 Zoom Use 0% Tactical HUD 0 Map Filters NONE Filters NONE Steam 1 RUN: a1bcdcec-ca63-480c-8070-73165fa3fd23